bitfinex-derivatives/quotes_SOLF0:USTF0_20240911
["timestamp","ask_amount","ask_price","bid_price","bid_amount"]
[1726041191178,3.7773,132.36,132.35,10.45]
[1726041191368,3.7773,132.36,132.35,17.34115973]
[1726041191976,3.7773,132.36,132.35,10.45]
[1726041192276,3.7773,132.36,132.35,17.34161735]
[1726041192672,3.7773,132.36,132.35,10.45]
[1726041193187,3.7776,132.35,132.34,14.19622242]
[1726041193373,3.7776,132.35,132.34,17.34299411]
[1726041194075,3.7776,132.35,132.34,21.16241231]
[1726041194475,3.7776,132.35,132.34,14.2694182]
[1726041194778,3.7776,132.35,132.34,21.16203161]
[1726041197277,3.7776,132.35,132.34,32.18933835]
[1726041197978,3.7776,132.35,132.34,21.16203161]
[1726041198272,3.7776,132.35,132.34,32.19012147]
[1726041198471,3.7776,132.35,132.34,21.16203161]
[1726041198674,3.7776,132.35,132.34,32.19028885]
[1726041200970,3.7776,132.35,132.34,14.2694182]
[1726041201279,3.7776,132.35,132.34,32.18804163]
[1726041202380,4.1522,132.4,132.34,45.96686727]
[1726041202676,2.777,132.4,132.37,10.45]
[1726041202870,2.777,132.4,132.38,17.33739295]
[1726041203182,2.777,132.4,132.38,10.45]
[1726041204384,1.3275,132.45,132.38,10.45]
[1726041204684,4.0549,132.45,132.39,17.33521314]
[1726041204871,4.0549,132.45,132.4,6.88521314]
[1726041205071,4.0549,132.45,132.39,10.45]
[1726041205267,4.0549,132.45,132.4,6.88367466]
[1726041205571,14.5049,132.45,132.39,3.83981866]
[1726041205776,14.5049,132.45,132.4,6.88290416]
[1726041206077,14.5049,132.45,132.38,10.45]
[1726041206373,14.5049,132.45,132.39,21.72555237]
[1726041206680,14.5049,132.45,132.4,6.88309477]
[1726041206872,14.5049,132.45,132.39,3.82950596]
[1726041207074,14.5049,132.45,132.4,6.88219846]
[1726041207276,14.5049,132.45,132.39,3.82950596]
[1726041207576,14.5049,132.45,132.4,6.88219846]
[1726041207777,10.45,132.44,132.38,10.45]
[1726041207973,10.45,132.44,132.39,6.88344541]
[1726041208169,10.45,132.44,132.4,6.88344541]
[1726041208374,10.45,132.44,132.38,10.45]
[1726041208571,10.45,132.44,132.39,6.88429522]
[1726041208775,10.45,132.44,132.38,10.45]
[1726041208969,10.45,132.44,132.39,6.88475046]
[1726041209166,10.45,132.44,132.38,10.45]
[1726041209472,10.45,132.44,132.39,6.88488763]
[1726041209678,10.45,132.44,132.37,14.18309662]
[1726041209879,10.45,132.44,132.38,17.9018948]
[1726041210179,10.45,132.44,132.39,6.88534415]
[1726041210474,10.45,132.44,132.37,14.18309662]
[1726041210681,10.45,132.44,132.38,17.90214205]
[1726041210983,10.45,132.44,132.39,6.88543925]
[1726041211280,10.45,132.44,132.37,14.18309662]
[1726041211467,10.45,132.43,132.38,17.90295356]
[1726041211671,10.45,132.43,132.37,14.18309662]
[1726041211882,10.45,132.43,132.38,6.88728589]
[1726041212083,10.45,132.43,132.39,6.88728589]
[1726041212378,10.45,132.43,132.37,14.18309662]
[1726041212573,10.45,132.43,132.38,6.8871089]
[1726041212776,10.45,132.43,132.39,6.8871089]
[1726041212980,10.45,132.43,132.37,10.45]
[1726041213372,10.45,132.43,132.38,6.8862351]
[1726041213572,10.45,132.43,132.38,17.90421126]
[1726041214877,10.45,132.43,132.39,6.8862351]
[1726041216585,10.45,132.43,132.37,10.45]
[1726041217480,10.45,132.44,132.38,10.45]
[1726041220481,10.45,132.43,132.37,10.45]
[1726041220682,10.45,132.43,132.39,6.88611365]
[1726041220979,10.45,132.43,132.37,10.45]
[1726041221182,10.45,132.43,132.38,17.90500921]
[1726041221382,10.45,132.43,132.39,6.886542]
[1726041221585,10.45,132.43,132.4,6.886542]
[1726041221781,10.45,132.43,132.37,14.26270776]
[1726041221982,10.45,132.43,132.38,17.90579755]
[1726041222182,10.45,132.43,132.39,6.88684521]
[1726041222380,10.45,132.43,132.37,14.26270776]
[1726041222381,10.45,132.43,132.4,6.88684521]
[1726041222581,10.45,132.43,132.37,14.26270776]
[1726041222888,10.45,132.43,132.38,17.90602094]
[1726041223187,10.45,132.43,132.39,6.88693113]
[1726041223385,10.45,132.43,132.4,6.88693113]
[1726041223593,10.45,132.43,132.37,14.26270776]
[1726041223887,10.45,132.43,132.38,17.90984268]
[1726041224088,10.45,132.43,132.39,6.88840103]
[1726041224392,10.45,132.43,132.4,6.88836359]
[1726041224588,10.45,132.43,132.38,10.45]
[1726041224782,10.45,132.43,132.39,17.90853953]
[1726041225084,10.45,132.43,132.38,10.45]
[1726041225280,10.45,132.44,132.38,10.45]
[1726041225483,10.45,132.44,132.39,17.90527867]
[1726041225687,10.45,132.44,132.4,6.88664564]
[1726041225987,10.45,132.44,132.38,10.45]
[1726041226191,10.45,132.44,132.39,17.90541628]
[1726041226378,4.0549,132.45,132.4,6.88669857]
[1726041226584,14.3414881,132.55,132.41,6.88669857]
[1726041226777,7.88777301,132.56,132.44,9.38207841]
[1726041226989,3.87134547,132.56,132.44,13.17636714]
[1726041227288,4.1075,132.6,132.52,10.45]
[1726041227590,10.45,132.58,132.53,6.86690477]
[1726041227786,10.45,132.58,132.54,6.86690477]
[1726041227982,10.45,132.58,132.52,10.45]
[1726041228286,10.45,132.57,132.53,7.23338978]
[1726041228484,10.45,132.57,132.49,10.45]
[1726041228991,10.45,132.57,132.5,11.57147792]
[1726041229185,10.45,132.57,132.51,10.45]
[1726041229381,10.45,132.57,132.5,18.80196724]
[1726041229587,10.45,132.57,132.51,7.22980797]
[1726041229790,10.45,132.57,132.5,11.57147792]
[1726041230092,10.45,132.57,132.51,17.67813464]
[1726041230278,10.45,132.57,132.51,10.45]
[1726041230484,10.45,132.58,132.51,10.45]
[1726041230883,7.80433463,132.6,132.51,10.45]
[1726041231085,10.45,132.59,132.52,10.45]
[1726041233192,10.45,132.57,132.51,10.45]
[1726041240693,10.45,132.54,132.45,7.23409413]
[1726041240894,1.2947,132.53,132.48,10.45]
[1726041241087,2.6157,132.53,132.48,10.45]
[1726041241390,2.6157,132.53,132.49,10.45]
[1726041241587,10.45,132.55,132.42,11.57065296]
[1726041241588,338.0,132.59,132.52,10.45]
[1726041241795,13.1947,132.58,132.52,10.45]
[1726041244800,13.1947,132.58,132.45,18.80635723]
[1726041244801,10.45,132.57,132.46,7.23321432]
[1726041245003,10.45,132.55,132.49,10.45]
[1726041245403,10.45,132.55,132.42,11.57531001]
[1726041245404,10.45,132.57,132.51,10.45]
[1726041245900,2.7447,132.58,132.53,10.45]
[1726041246101,13.1947,132.58,132.53,10.45]
[1726041247002,10.45,132.57,132.51,10.45]
[1726041248405,10.45,132.56,132.5,10.45]
[1726041248999,2.7447,132.58,132.51,10.45]
[1726041249000,10.45,132.57,132.51,10.45]
[1726041250010,2.7447,132.58,132.51,10.45]
[1726041250213,13.1947,132.58,132.51,10.45]
[1726041251012,13.1947,132.58,132.51,14.2231]
[1726041251209,2.7447,132.58,132.53,10.45]
[1726041251612,2.7447,132.58,132.51,3.7731]
[1726041251613,2.7447,132.58,132.55,10.45]
[1726041252809,2.7447,132.58,132.53,10.45]
[1726041253216,6.56101574,132.58,132.52,10.45]
[1726041253416,13.1947,132.58,132.51,10.45]
[1726041253629,10.45,132.57,132.5,10.45]
[1726041253828,14.21348954,132.57,132.5,10.45]
[1726041254324,2.7447,132.58,132.52,10.45]
[1726041254630,2.7447,132.58,132.53,10.45]
[1726041255327,2.7447,132.58,132.52,10.45]
[1726041255528,13.1947,132.58,132.52,10.45]
[1726041261827,2.7447,132.58,132.53,10.45]
[1726041264531,13.1947,132.58,132.52,10.45]
[1726041267521,2.7447,132.58,132.52,10.45]
[1726041269036,2.7447,132.58,132.54,10.45]
[1726041270437,2.7447,132.58,132.5,3.74735888]
[1726041270631,2.7447,132.58,132.53,10.45]
[1726041271832,2.7447,132.58,132.51,3.7729]
[1726041272031,2.7447,132.58,132.53,10.45]
[1726041279440,2.7447,132.58,132.54,10.45]
[1726041280036,338.0,132.64,132.56,10.45]
[1726041280246,7.76003682,132.63,132.51,3.69868699]
[1726041280549,4.004,132.63,132.58,10.45]
[1726041280845,18.26472721,132.63,132.56,10.45]
[1726041281035,7.81472721,132.63,132.58,10.45]
[1726041282839,7.81472721,132.63,132.47,9.34035801]
[1726041282840,7.81472721,132.63,132.57,10.45]
[1726041283047,18.26472721,132.63,132.57,10.45]
[1726041283340,7.81472721,132.63,132.57,10.45]
[1726041283543,18.26472721,132.63,132.57,10.45]
[1726041284741,4.004,132.63,132.58,10.45]
[1726041285539,7.68536085,132.63,132.54,3.76621907]
[1726041285736,7.68536085,132.63,132.58,10.45]
[1726041285941,16.80466085,132.63,132.58,10.45]
[1726041286149,6.35466085,132.63,132.58,10.45]
[1726041287341,2.6733,132.63,132.58,10.45]
[1726041288144,3.83872671,132.62,132.57,10.45]
[1726041290944,2.6733,132.63,132.59,10.45]
[1726041292845,2.6733,132.63,132.56,3.74547635]
[1726041292846,6.36295815,132.63,132.57,10.45]
[1726041293846,10.45,132.62,132.57,10.45]
[1726041294250,10.45,132.62,132.56,10.45]
[1726041294453,6.36295815,132.63,132.53,11.43525638]
[1726041294750,10.45,132.58,132.51,11.44236454]
[1726041294955,10.45,132.57,132.37,3.76254141]
[1726041295147,11.7953,132.57,132.5,10.45]
[1726041295449,14.25930448,132.56,132.5,10.45]
[1726041295646,14.25930448,132.56,132.51,18.59782452]
[1726041295647,3.7728,132.52,132.51,18.59782452]
[1726041295849,3.7728,132.52,132.51,7.15278809]
[1726041296156,3.7728,132.52,132.51,18.59816389]
[1726041297852,3.7728,132.52,132.51,7.15278809]
[1726041298354,10.45,132.54,132.49,10.45]
[1726041298549,10.45,132.54,132.51,7.15482761]
[1726041298746,10.45,132.54,132.49,10.45]
[1726041298956,10.45,132.54,132.5,18.60251482]
[1726041299155,3.8138687,132.56,132.51,7.15481339]
[1726041299352,10.45,132.54,132.48,24.75958222]
[1726041299548,14.31813103,132.54,132.49,18.60259414]
[1726041299855,14.31813103,132.54,132.5,18.60259414]
[1726041300052,14.31813103,132.54,132.51,7.1548439]
[1726041300247,14.31813103,132.54,132.48,10.45]
[1726041300452,14.31813103,132.54,132.49,18.60226225]
[1726041300648,14.31813103,132.54,132.5,18.60226225]
[1726041300856,14.31813103,132.54,132.51,7.15471625]
[1726041301058,14.31813103,132.54,132.48,10.45]
[1726041301255,14.31813103,132.54,132.49,18.60216735]
[1726041301460,14.31813103,132.54,132.5,18.60216735]
[1726041301656,3.7728,132.52,132.51,7.15467975]
[1726041302758,14.31813103,132.54,132.48,10.45]
[1726041302951,14.31813103,132.54,132.49,18.60487789]
[1726041303253,14.31813103,132.54,132.5,7.15559921]
[1726041303459,14.31813103,132.54,132.47,10.45]
[1726041303665,14.31813103,132.54,132.48,18.60832439]
[1726041303956,14.31813103,132.54,132.47,10.45]
[1726041304152,10.45,132.53,132.49,7.15717278]
[1726041304461,11.8104,132.53,132.46,10.45]
[1726041304658,10.45,132.51,132.47,18.61031178]
[1726041304863,10.45,132.51,132.48,7.15781222]
[1726041305060,10.45,132.51,132.45,10.45]
[1726041305356,10.45,132.51,132.46,18.61521907]
[1726041305560,10.45,132.51,132.47,7.15969964]
[1726041305760,10.45,132.51,132.48,7.15969964]
[1726041305958,10.45,132.5,132.44,14.2385863]
[1726041306149,10.45,132.5,132.45,18.61594116]
[1726041306354,10.45,132.5,132.46,7.15997737]
[1726041306549,10.45,132.5,132.47,7.15997737]
[1726041306861,10.45,132.5,132.44,10.45]
[1726041307164,10.45,132.5,132.45,18.61785904]
[1726041307350,10.45,132.5,132.46,7.16071501]
[1726041307554,10.45,132.5,132.44,10.45]
[1726041307755,10.45,132.5,132.45,7.16164673]
[1726041308054,10.45,132.49,132.42,28.48111441]
[1726041308258,10.45,132.49,132.43,18.62218265]
[1726041308558,10.45,132.49,132.44,18.62218265]
[1726041308760,10.45,132.49,132.45,7.16237794]
[1726041308954,10.45,132.49,132.42,14.31673295]
[1726041309151,10.45,132.49,132.43,18.62260319]
[1726041309354,10.45,132.49,132.44,7.16253969]
[1726041309549,10.45,132.49,132.45,7.16253969]
[1726041309754,10.45,132.49,132.43,11.46021143]
[1726041309959,10.45,132.49,132.44,18.62097134]
[1726041310156,10.45,132.49,132.45,7.16191205]
[1726041310362,10.45,132.49,132.43,11.45861554]
[1726041310659,10.45,132.49,132.44,7.16160114]
[1726041310860,10.45,132.49,132.45,7.16160114]
[1726041311062,10.45,132.49,132.43,11.45840938]
[1726041311258,10.45,132.49,132.44,7.16179656]
[1726041311563,10.45,132.49,132.45,7.16179656]
[1726041311765,10.45,132.47,132.43,11.45941763]
[1726041312062,10.45,132.47,132.44,7.16213602]
[1726041312256,10.45,132.47,132.43,11.45952675]
[1726041312458,10.45,132.47,132.44,7.16220422]
[1726041312662,10.45,132.47,132.42,11.45938866]
[1726041312854,10.45,132.46,132.43,18.62139213]
[1726041313055,10.45,132.45,132.39,14.2264]
[1726041313363,10.45,132.46,132.4,43.40210014]
[1726041313567,10.45,132.46,132.41,18.6278281]
[1726041313765,10.45,132.46,132.42,18.6278281]
[1726041313970,339.3286,132.52,132.41,11.46327883]
[1726041314265,10.45,132.47,132.42,18.62617141]
[1726041314462,10.45,132.47,132.43,7.16289258]
[1726041314663,10.45,132.47,132.42,11.46006584]
[1726041314864,10.45,132.47,132.43,7.16239832]
[1726041315058,10.45,132.47,132.42,11.45983731]
[1726041315365,10.45,132.47,132.43,7.16246478]
[1726041315565,10.45,132.47,132.4,10.45]
[1726041315767,10.45,132.47,132.41,18.62239816]
[1726041316065,10.45,132.47,132.42,7.16246083]
[1726041316257,10.45,132.47,132.43,7.16246083]
[1726041316458,10.45,132.47,132.4,10.45]
[1726041316658,10.45,132.47,132.41,7.16139282]
[1726041316953,10.45,132.47,132.42,7.16139282]
[1726041317159,10.45,132.47,132.43,7.15889102]
[1726041317356,10.45,132.47,132.41,11.45422563]
[1726041317560,10.45,132.47,132.42,7.15943095]
[1726041317766,10.45,132.46,132.4,10.45]
[1726041317963,10.45,132.46,132.41,7.15982977]
[1726041318168,10.45,132.46,132.42,7.15982977]
[1726041318368,3.71884911,132.47,132.4,11.45554376]
[1726041318569,10.45,132.46,132.41,7.16007359]
[1726041318865,10.45,132.46,132.4,21.90554376]
[1726041319067,10.45,132.46,132.41,7.16021645]
[1726041319265,10.45,132.46,132.4,21.90554376]
[1726041319462,10.45,132.46,132.41,7.16044962]
[1726041319661,10.45,132.46,132.4,21.90554376]
[1726041319968,10.45,132.48,132.42,10.45]
[1726041320374,10.45,132.49,132.42,10.45]
[1726041320576,10.45,132.47,132.41,10.45]
[1726041320765,10.45,132.47,132.42,7.15949701]
[1726041321066,10.45,132.47,132.41,10.45]
[1726041321267,10.45,132.47,132.42,7.15966349]
[1726041321462,10.45,132.47,132.41,10.45]
[1726041321660,10.45,132.47,132.41,14.2259]
[1726041321863,10.45,132.46,132.4,10.45]
[1726041322065,10.45,132.46,132.41,7.15998759]
[1726041322360,10.45,132.46,132.38,11.4559702]
[1726041322361,10.45,132.44,132.38,11.4559702]
[1726041322559,10.45,132.44,132.39,7.16262263]
[1726041322765,10.45,132.44,132.38,3.7767]
[1726041322970,10.45,132.44,132.39,7.16186887]
[1726041323167,10.45,132.44,132.38,15.2326702]
[1726041323168,10.45,132.44,132.4,10.93806887]
[1726041323466,10.45,132.44,132.39,7.16180737]
[1726041323661,10.45,132.44,132.38,10.45]
[1726041323863,10.45,132.44,132.39,10.93805015]
[1726041324160,10.45,132.44,132.39,3.7763]
[1726041325072,10.45,132.45,132.4,10.93780729]
[1726041325268,10.45,132.45,132.4,14.2262]
[1726041325461,10.45,132.46,132.41,10.93750729]
[1726041325666,10.45,132.46,132.41,21.38750729]
[1726041325865,10.45,132.48,132.41,14.2259]
[1726041326466,10.45,132.48,132.41,21.38477445]
[1726041326676,10.45,132.48,132.41,14.2259]
[1726041327374,10.45,132.48,132.42,10.45]
[1726041327866,348.45,132.51,132.44,10.45]
[1726041328067,348.45,132.51,132.45,3.69610342]
[1726041328473,348.45,132.51,132.45,7.47080342]
[1726041328674,10.45,132.51,132.45,7.47080342]
[1726041329272,1.3286,132.52,132.46,3.7744]
[1726041329470,10.45,132.51,132.46,3.7744]
[1726041329668,10.45,132.51,132.45,10.45]
[1726041330074,10.45,132.51,132.45,14.2246]
[1726041331674,10.45,132.49,132.45,3.7746]
[1726041332771,10.45,132.49,132.46,3.7745]
[1726041333170,10.45,132.51,132.46,3.7745]
[1726041336083,1.3286,132.52,132.44,14.17537665]
[1726041336274,11.7786,132.52,132.44,14.17537665]
[1726041336578,11.7786,132.52,132.46,10.45]
[1726041336777,18.3604,132.53,132.48,10.45]
[1726041337176,18.3604,132.53,132.49,3.7735]
[1726041337371,28.8104,132.53,132.49,3.7735]
[1726041337975,28.8104,132.53,132.48,14.2238]
[1726041338376,28.8104,132.53,132.48,3.7738]
[1726041338675,10.45,132.52,132.48,3.7738]
[1726041339879,10.45,132.52,132.46,10.45]
[1726041340078,10.45,132.52,132.47,7.13767212]
[1726041340281,10.45,132.52,132.49,3.7735]
[1726041341289,10.45,132.52,132.5,3.7733]
[1726041341982,28.8104,132.53,132.5,3.7733]
[1726041344689,28.8104,132.53,132.49,3.7735]
[1726041345583,28.8104,132.53,132.5,3.7733]
[1726041347884,28.8104,132.53,132.48,10.45]
[1726041348276,28.8104,132.53,132.49,3.7735]
[1726041348886,28.8104,132.53,132.5,3.7733]
[1726041349892,18.3604,132.53,132.5,3.7733]
[1726041353189,18.3604,132.53,132.48,10.45]
[1726041353691,18.3604,132.53,132.5,3.7732]
[1726041355996,18.3604,132.53,132.49,3.7736]
[1726041356994,18.3604,132.53,132.48,10.45]
[1726041357192,18.3604,132.53,132.49,7.13675629]
[1726041357397,18.3604,132.53,132.48,10.45]
[1726041357694,18.3604,132.53,132.49,7.13671307]
[1726041357901,18.3604,132.53,132.49,3.7735]
[1726041358598,18.3604,132.53,132.48,14.2238]
[1726041358788,18.3604,132.53,132.49,7.13689362]
[1726041358992,28.8104,132.53,132.48,14.2238]
[1726041359196,28.8104,132.53,132.49,7.13705279]
[1726041359500,28.8104,132.53,132.48,3.7738]
[1726041359692,28.8104,132.53,132.49,7.13705279]
[1726041359889,28.8104,132.53,132.49,3.7736]
[1726041363300,28.8104,132.53,132.5,7.137777]
[1726041363491,28.8104,132.53,132.49,3.7736]
[1726041363691,28.8104,132.53,132.5,7.13783455]
[1726041363895,28.8104,132.53,132.48,10.45]
[1726041364095,28.8104,132.53,132.49,18.55646919]
[1726041364294,28.8104,132.53,132.5,7.13710353]
[1726041364590,28.8104,132.53,132.49,3.7734]
[1726041364999,28.8104,132.53,132.5,7.137777]
[1726041365201,28.8104,132.53,132.49,3.7734]
[1726041365702,28.8104,132.53,132.5,7.137777]
[1726041366002,28.8104,132.53,132.49,3.7734]
[1726041366202,28.8104,132.53,132.5,7.13781249]
[1726041366506,28.8104,132.53,132.49,3.7734]
[1726041366696,28.8104,132.53,132.5,7.13782487]
[1726041366894,28.8104,132.53,132.49,3.7734]
[1726041367094,28.8104,132.53,132.5,7.1377782]
[1726041367295,28.8104,132.53,132.49,3.7734]
[1726041367499,28.8104,132.53,132.5,7.13845068]
[1726041367806,18.3604,132.53,132.49,3.7734]
[1726041367996,18.3604,132.53,132.5,7.13828713]
[1726041368196,18.3604,132.53,132.51,7.13828713]
[1726041368392,18.3604,132.53,132.48,10.45]
[1726041368604,18.3604,132.53,132.49,7.1403113]
[1726041368794,18.3604,132.53,132.5,7.1403113]
[1726041368995,18.3604,132.53,132.48,10.45]
[1726041369199,18.3604,132.53,132.49,7.14182899]
[1726041369503,18.3604,132.53,132.5,7.14182899]
[1726041369801,18.3604,132.53,132.48,10.45]
[1726041369998,18.3604,132.53,132.49,7.14388781]
[1726041370201,18.3604,132.53,132.5,7.14388781]
[1726041370399,18.3604,132.53,132.48,14.2239]
[1726041370599,18.3604,132.53,132.49,10.91767507]
[1726041370805,18.3604,132.53,132.5,7.14407507]
[1726041370999,18.3604,132.53,132.49,3.7736]
[1726041371200,18.3604,132.53,132.5,7.14450511]
[1726041371410,18.3604,132.53,132.49,3.7736]
[1726041371707,18.3604,132.53,132.5,7.14497253]
[1726041371906,18.3604,132.53,132.48,10.45]
[1726041372115,18.3604,132.53,132.49,7.14473045]
[1726041372302,18.3604,132.53,132.5,7.14473045]
[1726041372502,18.3604,132.53,132.48,14.2239]
[1726041372707,18.3604,132.53,132.49,7.14670907]
[1726041372909,18.3604,132.53,132.5,7.14670907]
[1726041373111,10.45,132.52,132.48,3.7739]
[1726041373306,10.45,132.51,132.49,7.14758318]
[1726041373510,1.338,132.5,132.46,11.44032395]
[1726041373716,1.338,132.5,132.47,18.59122888]
[1726041373907,1.338,132.5,132.45,14.2936058]
[1726041373908,1.338,132.5,132.48,7.15090493]
[1726041374215,1.338,132.5,132.49,7.15090493]
[1726041375111,1.338,132.5,132.46,10.45]
[1726041375112,1.338,132.5,132.46,14.2243]
[1726041375307,1.338,132.5,132.49,7.15088271]
[1726041375706,1.338,132.5,132.46,14.2243]
[1726041375912,1.338,132.5,132.47,18.59169262]
[1726041376114,1.338,132.5,132.48,7.15065101]
[1726041376309,1.338,132.5,132.49,7.15065101]
[1726041376510,1.338,132.5,132.47,11.42200326]
[1726041376710,1.338,132.5,132.48,7.13847504]
[1726041376911,1.338,132.5,132.46,18.07579259]
[1726041377119,1.338,132.5,132.47,18.55998458]
[1726041377316,1.338,132.5,132.48,7.13845561]
[1726041377520,1.338,132.5,132.49,7.13845561]
[1726041380629,24.788,132.51,132.49,7.13845561]
[1726041380824,24.788,132.51,132.46,18.07579259]
[1726041380825,24.788,132.51,132.47,11.42136763]
[1726041381026,24.788,132.51,132.48,7.13888358]
[1726041381221,24.788,132.51,132.46,3.7743]
[1726041381423,24.788,132.51,132.47,22.33572428]
[1726041381629,24.788,132.51,132.48,7.13908626]
[1726041381829,24.788,132.51,132.47,3.7741]
[1726041382029,24.788,132.51,132.48,7.13877102]
[1726041382326,24.788,132.51,132.47,3.7741]
[1726041382525,24.788,132.51,132.48,7.13930405]
[1726041382825,24.788,132.51,132.46,3.7744]
[1726041383030,24.788,132.51,132.47,7.14028613]
[1726041383232,24.788,132.51,132.48,7.14028613]
[1726041383424,24.788,132.51,132.46,3.7744]
[1726041383619,24.788,132.51,132.47,7.13992773]
[1726041383923,24.788,132.51,132.48,7.13992773]
[1726041384126,24.788,132.51,132.47,3.7741]
[1726041384333,24.788,132.51,132.48,7.140025]
[1726041384631,24.788,132.51,132.47,3.7741]
[1726041384933,24.788,132.51,132.48,7.14003803]
[1726041385129,24.788,132.51,132.47,3.7741]
[1726041385326,24.788,132.51,132.48,7.1400492]
[1726041385526,24.788,132.51,132.47,3.7741]
[1726041385728,24.788,132.51,132.48,7.1400492]
[1726041386026,24.788,132.51,132.47,3.7741]
[1726041386221,24.788,132.51,132.48,7.13959028]
[1726041386426,24.788,132.51,132.46,3.7744]
[1726041386632,10.45,132.5,132.47,7.13987785]
[1726041386829,10.45,132.5,132.44,14.17537665]
[1726041387033,10.45,132.5,132.46,3.7745]
[1726041387426,10.45,132.5,132.47,7.14095152]
[1726041387626,10.45,132.5,132.48,7.14095152]
[1726041387827,10.45,132.5,132.46,3.7745]
[1726041388035,10.45,132.5,132.47,7.14087436]
[1726041388239,10.45,132.5,132.48,7.14087436]
[1726041388531,17.0,132.51,132.46,10.45]
[1726041388728,17.0,132.51,132.47,11.42312028]
[1726041388933,17.0,132.51,132.48,7.13945017]
[1726041389133,17.0,132.51,132.49,7.13945017]
[1726041389435,17.0,132.51,132.46,10.45]
[1726041389436,10.45,132.5,132.47,3.7741]
[1726041389638,17.0,132.51,132.48,7.14045196]
[1726041389942,17.0,132.51,132.49,7.14045196]
[1726041390131,17.0,132.51,132.47,3.7741]
[1726041390437,17.0,132.51,132.48,18.56360378]
[1726041390737,17.0,132.51,132.49,7.13984761]
[1726041390939,17.0,132.51,132.47,3.7741]
[1726041391128,17.0,132.51,132.48,7.13991204]
[1726041391325,17.0,132.51,132.49,7.13991204]
[1726041391631,17.0,132.51,132.47,3.7741]
[1726041391832,17.0,132.51,132.48,18.56199288]
[1726041392132,27.45,132.51,132.49,7.13922803]
[1726041392335,17.0,132.51,132.45,14.28103103]
[1726041392538,27.45,132.51,132.46,32.84372871]
[1726041392733,27.45,132.51,132.47,18.56269768]
[1726041392934,10.45,132.5,132.48,7.13949911]
[1726041393139,10.45,132.5,132.45,14.28199487]
[1726041393332,10.45,132.5,132.46,18.56659333]
[1726041393532,10.45,132.5,132.43,9.34964594]
[1726041393533,10.45,132.5,132.47,18.56659333]
[1726041393830,10.45,132.5,132.48,7.14099743]
[1726041394030,10.45,132.5,132.45,14.28309775]
[1726041394227,10.45,132.49,132.46,18.56841036]
[1726041394433,10.45,132.49,132.47,7.14169629]
[1726041394634,10.45,132.49,132.48,7.14169629]
[1726041394837,10.45,132.49,132.48,5.00249629]
[1726041398738,10.45,132.49,132.45,3.7748]
[1726041399146,10.45,132.49,132.43,10.45]
[1726041399147,14.23038592,132.49,132.43,10.45]
[1726041399637,14.23038592,132.49,132.43,14.2252]
[1726041400443,14.23038592,132.49,132.44,3.775]
[1726041400643,14.23038592,132.49,132.43,10.45]
[1726041401141,14.23038592,132.49,132.45,3.7746]
[1726041401343,14.23038592,132.49,132.43,10.45]
[1726041401742,14.23038592,132.49,132.43,14.2252]
[1726041404045,14.23038592,132.49,132.44,25.54390199]
[1726041404346,14.23038592,132.49,132.45,11.35284533]
[1726041404546,14.23038592,132.49,132.46,11.35284533]
[1726041404747,14.23038592,132.49,132.43,14.2252]
[1726041404948,14.23038592,132.49,132.44,29.31747493]
[1726041405147,14.23038592,132.49,132.45,25.54247493]